bitfinex/quotes_BTCUSD_20230115
["timestamp","ask_amount","ask_price","bid_price","bid_amount"]
[1673758180739,0.05582947,20697.0,20696.0,2.54029966]
[1673758182314,0.05582947,20697.0,20696.0,2.68440685]
[1673758182519,0.05582947,20697.0,20696.0,2.32319988]
[1673758183248,0.05582947,20697.0,20696.0,2.54038847]
[1673758183511,0.05582947,20697.0,20696.0,2.32319988]
[1673758183753,0.05582947,20697.0,20696.0,2.54038755]
[1673758185756,0.05582947,20697.0,20696.0,2.25115208]
[1673758186013,0.05582947,20697.0,20696.0,2.54038755]
[1673758188994,0.05582947,20697.0,20696.0,2.54032642]
[1673758189726,0.05582947,20697.0,20696.0,2.32308678]
[1673758190235,0.05582947,20697.0,20696.0,2.5403326]
[1673758194071,0.05582947,20697.0,20696.0,2.25109713]
[1673758194326,0.05582947,20697.0,20696.0,2.32308678]
[1673758194846,0.05582947,20697.0,20696.0,2.68429375]
[1673758196099,0.05582947,20697.0,20696.0,2.54032727]
[1673758198107,0.05582947,20697.0,20696.0,2.32308678]
[1673758198349,0.05582947,20697.0,20696.0,2.54032484]
[1673758198594,0.05582947,20697.0,20696.0,2.32308678]
[1673758199014,0.05582947,20697.0,20696.0,2.68429375]
[1673758199503,0.05582947,20697.0,20696.0,2.39505828]
[1673758200254,0.05582947,20697.0,20696.0,2.684703]
[1673758201267,0.05582947,20697.0,20696.0,2.39505828]
[1673758203258,0.05582947,20697.0,20696.0,2.87824328]
[1673758203520,0.05582947,20697.0,20696.0,2.01641887]
[1673758203822,0.056,20698.0,20697.0,0.02501989]
[1673758204041,0.056,20698.0,20697.0,3.28880995]
[1673758204581,0.056,20698.0,20697.0,3.18880995]
[1673758205148,0.00019,20701.0,20698.0,0.1]
[1673758205360,0.00019,20701.0,20700.0,0.21710111]
[1673758205609,0.00019,20701.0,20700.0,2.30812033]
[1673758205862,0.00019,20701.0,20700.0,2.59764012]
[1673758206123,0.00019,20701.0,20700.0,2.30817198]
[1673758206628,0.00019,20701.0,20700.0,2.59750984]
[1673758207740,0.00019,20701.0,20700.0,2.4545864]
[1673758207929,0.00019,20701.0,20700.0,2.4525864]
[1673758208193,0.00019,20701.0,20700.0,2.4545864]
[1673758208689,0.00019,20701.0,20700.0,2.99692371]
[1673758208962,0.00019,20701.0,20700.0,2.4545864]
[1673758209220,0.00019,20701.0,20700.0,2.23767466]
[1673758209751,0.00019,20701.0,20700.0,2.89950984]
[1673758210012,0.00019,20701.0,20700.0,2.89936427]
[1673758210295,0.00019,20701.0,20700.0,3.10582909]
[1673758210763,0.00019,20701.0,20700.0,3.46766427]
[1673758210981,0.00019,20701.0,20700.0,3.17847198]
[1673758211796,0.00019,20701.0,20700.0,3.46738852]
[1673758212307,0.00019,20701.0,20700.0,3.10555334]
[1673758212555,0.00019,20701.0,20700.0,3.32222447]
[1673758212890,0.00019,20701.0,20700.0,3.03330793]
[1673758213370,0.00019,20701.0,20700.0,2.73330793]
[1673758213623,0.00019,20701.0,20700.0,3.32222447]
[1673758213888,0.00019,20701.0,20700.0,2.87772687]
[1673758214128,0.00019,20701.0,20700.0,3.03330793]
[1673758214900,0.00019,20701.0,20700.0,3.32222447]
[1673758215925,0.00019,20701.0,20700.0,3.17768555]
[1673758216172,0.00019,20701.0,20700.0,3.17767373]
[1673758216680,0.00019,20701.0,20700.0,1.66878674]
[1673758216932,0.00019,20701.0,20700.0,0.61739574]
[1673758226233,7.377e-05,20701.0,20700.0,0.61739574]
[1673758230547,7.377e-05,20701.0,20700.0,0.76176154]
[1673758231809,7.377e-05,20701.0,20700.0,0.61739574]
[1673758232078,7.377e-05,20701.0,20700.0,0.76176154]
[1673758232815,7.377e-05,20701.0,20700.0,1.72798439]
[1673758233272,7.377e-05,20701.0,20700.0,0.76176154]
[1673758234318,7.377e-05,20701.0,20700.0,1.9446627]
[1673758234573,7.377e-05,20701.0,20700.0,2.37584946]
[1673758235333,7.377e-05,20701.0,20700.0,1.9446627]
[1673758235846,7.377e-05,20701.0,20700.0,0.61739574]
[1673758236093,7.377e-05,20701.0,20700.0,0.76176154]
[1673758238115,7.377e-05,20701.0,20700.0,1.94469432]
[1673758238367,7.377e-05,20701.0,20700.0,2.37582343]
[1673758239586,0.00676164,20703.0,20700.0,2.37582343]
[1673758239839,0.00676164,20703.0,20701.0,0.49841913]
[1673758240334,0.00676164,20703.0,20701.0,0.64278493]
[1673758240832,0.00676164,20703.0,20701.0,0.49841913]
[1673758241083,0.00676164,20703.0,20701.0,0.64278493]
[1673758241824,0.00976164,20703.0,20701.0,0.50241913]
[1673758242326,0.003,20703.0,20702.0,0.51349493]
[1673758242584,0.003,20703.0,20702.0,0.55712338]
[1673758242839,0.00432975,20706.0,20703.0,0.00095779]
[1673758243088,0.00432975,20706.0,20705.0,0.50651316]
[1673758243356,0.00432975,20706.0,20705.0,1.56648473]
[1673758243848,0.00432975,20706.0,20705.0,1.59374464]
[1673758244102,0.00432975,20706.0,20705.0,1.27129022]
[1673758244596,0.00432975,20706.0,20705.0,1.36429022]
[1673758244850,0.00432975,20706.0,20705.0,1.27129022]
[1673758245092,0.00432975,20706.0,20705.0,1.34629022]
[1673758246120,0.00432975,20706.0,20705.0,1.66859674]
[1673758246406,0.00432975,20706.0,20705.0,2.27393445]
[1673758246920,0.00432975,20706.0,20705.0,2.19893445]
[1673758247168,0.00432975,20706.0,20705.0,2.29193445]
[1673758247398,0.00432975,20706.0,20705.0,2.19893445]
[1673758247641,0.00432975,20706.0,20705.0,1.30791917]
[1673758248126,0.00432975,20706.0,20705.0,1.16331271]
[1673758248637,0.00432975,20706.0,20705.0,1.30791917]
[1673758248895,0.00432975,20706.0,20705.0,1.66858592]
[1673758249156,0.00432975,20706.0,20705.0,2.53449941]
[1673758249404,0.00432975,20706.0,20705.0,0.70258146]
[1673758249657,0.00432975,20706.0,20705.0,1.66858228]
[1673758249910,0.00432975,20706.0,20705.0,0.70258146]
[1673758250940,0.00432975,20706.0,20705.0,1.81047146]
[1673758251160,0.00432975,20706.0,20705.0,2.24131383]
[1673758251409,0.00432975,20706.0,20705.0,1.66856178]
[1673758251671,0.00432975,20706.0,20705.0,0.70258146]
[1673758252177,0.00432975,20706.0,20705.0,0.62758146]
[1673758252425,0.00432975,20706.0,20705.0,0.72058146]
[1673758253161,0.00432975,20706.0,20705.0,1.59354968]
[1673758253421,0.00432975,20706.0,20705.0,0.70258146]
[1673758253927,0.00432975,20706.0,20705.0,1.17308806]
[1673758257268,0.00432975,20706.0,20700.0,0.14460646]
[1673758257269,0.95421739,20706.0,20700.0,0.14460646]
[1673758257526,0.19557,20701.0,20696.0,0.14460646]
[1673758257788,0.19557,20701.0,20695.0,0.28943609]
[1673758257789,1.28755958,20700.0,20698.0,0.36179511]
[1673758258102,0.1396,20698.0,20695.0,0.50920882]
[1673758258384,1.86252894,20700.0,20694.0,0.56802772]
[1673758258385,1.113906,20700.0,20694.0,0.56802772]
[1673758258684,0.483151,20698.0,20696.0,0.5434739]
[1673758258929,0.321144,20697.0,20696.0,0.5434739]
[1673758259182,0.491661,20697.0,20695.0,0.49200324]
[1673758259439,0.966322,20697.0,20696.0,0.01690463]
[1673758259711,1.295966,20697.0,20696.0,0.01690463]
[1673758260188,1.368966,20697.0,20696.0,0.01690463]
[1673758260433,1.441966,20697.0,20696.0,0.01890463]
[1673758260683,1.189734,20697.0,20696.0,0.01690463]
[1673758260930,0.974822,20697.0,20696.0,0.01690463]
[1673758261251,0.974822,20697.0,20696.0,0.01890463]
[1673758261252,1.047822,20697.0,20696.0,0.01890463]
[1673758261433,1.368966,20697.0,20696.0,0.01890463]
[1673758261682,1.457983,20697.0,20696.0,0.01890463]
[1673758261925,1.852127,20697.0,20696.0,0.01890463]
[1673758262184,1.779127,20697.0,20696.0,0.01690463]
[1673758263183,1.852127,20697.0,20696.0,0.01890463]
[1673758263683,1.779127,20697.0,20696.0,0.01690463]
[1673758263933,1.852127,20697.0,20696.0,0.01890463]
[1673758264206,1.530983,20697.0,20696.0,0.01890463]
[1673758264462,1.852127,20697.0,20696.0,0.01890463]
[1673758264716,1.530983,20697.0,20696.0,0.01890463]
[1673758264955,1.852127,20697.0,20696.0,0.01890463]
[1673758265467,1.530983,20697.0,20696.0,0.01890463]
[1673758265718,1.852127,20697.0,20696.0,0.01890463]
[1673758266257,3.04296902,20697.0,20696.0,0.01890463]
[1673758266480,3.09963902,20697.0,20696.0,0.01890463]
[1673758268030,2.82609869,20697.0,20696.0,0.01890463]
[1673758268551,2.46942869,20697.0,20696.0,0.01890463]
[1673758268870,1.98626769,20697.0,20696.0,0.01890463]
[1673758269041,2.28626769,20697.0,20696.0,0.01890463]
[1673758270308,1.96512369,20697.0,20696.0,0.01890463]
[1673758270580,2.28626769,20697.0,20696.0,0.01890463]
[1673758270831,2.18003569,20697.0,20696.0,0.01890463]
[1673758271091,2.28626769,20697.0,20696.0,0.01890463]
[1673758271867,1.96512369,20697.0,20696.0,0.01890463]
[1673758272107,2.28626769,20697.0,20696.0,0.01890463]
[1673758272625,2.51095726,20697.0,20696.0,0.01890463]
[1673758272876,2.61718926,20697.0,20696.0,0.01890463]
[1673758273126,2.51095726,20697.0,20696.0,0.01890463]
[1673758273384,2.29604526,20697.0,20696.0,0.01890463]
[1673758273667,2.61718926,20697.0,20696.0,0.01890463]
[1673758273988,2.29604526,20697.0,20696.0,0.01890463]
[1673758274159,3.0219092,20697.0,20696.0,0.01890463]
[1673758274921,2.29604526,20697.0,20696.0,0.01890463]
[1673758275152,2.61718926,20697.0,20696.0,0.01890463]
[1673758275656,2.51095726,20697.0,20696.0,0.01890463]
[1673758275922,3.0219092,20697.0,20696.0,0.01890463]
[1673758276173,2.18003569,20697.0,20696.0,0.01890463]
[1673758276466,2.28626769,20697.0,20696.0,0.01890463]
[1673758276688,1.96512369,20697.0,20696.0,0.01890463]
[1673758276936,2.28626769,20697.0,20696.0,0.01890463]
[1673758277186,1.66512369,20697.0,20696.0,0.01890463]
[1673758277448,1.98626769,20697.0,20696.0,0.01890463]
[1673758277708,1.88003569,20697.0,20696.0,0.01890463]
[1673758277933,1.88003569,20697.0,20696.0,0.57609798]
[1673758277934,1.262734,20697.0,20696.0,0.57609798]
[1673758278189,1.047822,20697.0,20696.0,0.57609798]
[1673758278444,0.564661,20697.0,20696.0,0.57609798]
[1673758278710,0.564661,20697.0,20696.0,0.57601077]
[1673758295323,0.556161,20697.0,20696.0,0.57601077]
[1673758299606,0.70025107,20697.0,20696.0,0.57601077]
[1673758299855,0.70025107,20697.0,20696.0,0.01881742]
[1673758302807,0.21709007,20697.0,20696.0,0.01881742]
[1673758303056,0.70025107,20697.0,20696.0,0.01881742]
[1673758305799,1.02139507,20697.0,20696.0,0.01881742]
[1673758306067,0.70025107,20697.0,20696.0,0.01881742]
[1673758309104,0.70025107,20697.0,20696.0,0.64993007]
[1673758309365,0.556161,20697.0,20696.0,0.64993007]
[1673758309636,0.70025107,20697.0,20696.0,0.64993007]
[1673758310173,0.92488618,20697.0,20696.0,0.01881742]
[1673758310417,1.39012025,20697.0,20696.0,0.01881742]
[1673758310670,1.28388825,20697.0,20696.0,0.01881742]
[1673758311153,2.36522415,20697.0,20696.0,0.01881742]
[1673758311903,2.13371401,20697.0,20696.0,0.01881742]
[1673758312128,2.09346405,20697.0,20696.0,0.01881742]
[1673758312861,1.87855205,20697.0,20696.0,0.01881742]
[1673758313110,2.19969605,20697.0,20696.0,0.01881742]
[1673758313361,1.17449448,20697.0,20696.0,0.01881742]
[1673758313590,1.06984026,20697.0,20696.0,0.01881742]
[1673758313849,1.17449448,20697.0,20696.0,0.01881742]
[1673758314099,1.84346672,20697.0,20696.0,0.01881742]
[1673758314382,1.48324154,20697.0,20696.0,0.01881742]
[1673758314843,1.84346672,20697.0,20696.0,0.01881742]
[1673758315091,2.33342244,20697.0,20696.0,0.01881742]
[1673758315348,2.04473296,20697.0,20696.0,0.01881742]
[1673758315597,1.85477724,20697.0,20696.0,0.01881742]
[1673758316089,1.91144724,20697.0,20696.0,0.01881742]
[1673758316597,1.61144724,20697.0,20696.0,0.01881742]
[1673758316851,1.29030324,20697.0,20696.0,0.01881742]
[1673758317106,1.61144724,20697.0,20696.0,0.01881742]
[1673758317349,1.91144724,20697.0,20696.0,0.01881742]
[1673758317859,1.59030324,20697.0,20696.0,0.01881742]
[1673758318100,1.91144724,20697.0,20696.0,0.01881742]
[1673758318358,1.59030324,20697.0,20696.0,0.01881742]
[1673758318620,1.91144724,20697.0,20696.0,0.01881742]
[1673758319140,2.05164724,20697.0,20696.0,0.01881742]
[1673758319395,1.73050324,20697.0,20696.0,0.01881742]
[1673758319688,2.05164724,20697.0,20696.0,0.01881742]
[1673758320212,1.75164724,20697.0,20696.0,0.01881742]
[1673758320981,1.71916819,20697.0,20696.0,0.01881742]
[1673758321233,1.98364219,20697.0,20696.0,0.01881742]
[1673758321489,1.66249819,20697.0,20696.0,0.01881742]
[1673758321791,1.98364219,20697.0,20696.0,0.01881742]
[1673758322024,0.43383556,20697.0,20696.0,0.12915227]
[1673758322291,0.073,20697.0,20696.0,0.79220066]
[1673758322545,0.073,20697.0,20696.0,1.57629972]
[1673758322822,0.073,20697.0,20696.0,1.83547923]
[1673758323380,0.07290549,20697.0,20696.0,1.83547923]
[1673758323630,0.07290549,20697.0,20696.0,2.12480823]
[1673758323908,0.07290549,20697.0,20696.0,2.60799323]
[1673758324522,0.07290549,20697.0,20696.0,2.90799323]
[1673758324781,0.1443352,20703.0,20696.0,2.61666423]
[1673758325030,0.1443352,20703.0,20698.0,0.1446524]
[1673758325031,0.33506115,20703.0,20698.0,0.1446524]
[1673758325287,0.1443352,20703.0,20699.0,0.02484485]
[1673758325563,0.36083556,20704.0,20699.0,0.50794385]
[1673758325833,0.0085,20703.0,20700.0,0.02484485]
[1673758326084,0.0755,20703.0,20699.0,1.039899]
[1673758326349,0.0085,20703.0,20699.0,1.06474385]
[1673758326607,0.0755,20703.0,20699.0,1.06674385]
[1673758326858,0.0755,20703.0,20699.0,1.041899]
[1673758327382,0.067,20703.0,20700.0,0.49686068]
[1673758327646,0.067,20703.0,20700.0,0.97994768]
[1673758327892,0.1443352,20705.0,20700.0,0.98194768]
[1673758328152,0.067,20703.0,20701.0,0.02484485]
[1673758328398,0.134,20703.0,20700.0,0.98194768]
[1673758328652,0.0085,20704.0,20700.0,0.97994768]
[1673758328910,0.2113352,20705.0,20700.0,0.50993185]
[1673758329168,0.70378411,20706.0,20700.0,0.50793185]
[1673758329169,0.84811931,20706.0,20700.0,0.50793185]
[1673758329456,0.067,20703.0,20701.0,0.02484485]
[1673758329763,0.067,20703.0,20700.0,0.968178]
[1673758329947,0.067,20703.0,20700.0,1.58103628]
[1673758330168,0.067,20703.0,20701.0,0.54230544]
[1673758330426,0.0085,20705.0,20701.0,0.54230544]
[1673758330682,0.0755,20705.0,20701.0,0.56715029]
[1673758330940,0.0085,20705.0,20701.0,0.56715029]
[1673758331210,0.067,20703.0,20701.0,0.56715029]
[1673758331467,0.0085,20705.0,20701.0,0.54230544]
[1673758331723,0.26622595,20705.0,20701.0,0.54430544]
[1673758332494,0.26622595,20705.0,20702.0,0.47695667]
[1673758332752,0.0755,20705.0,20702.0,0.47695667]
[1673758333012,0.0755,20705.0,20701.0,0.002]
[1673758333013,0.67347169,20703.0,20697.0,0.1446524]
[1673758333284,0.14,20698.0,20696.0,0.71153005]
[1673758333551,2.33232264,20697.0,20696.0,0.01681742]
[1673758333824,3.14551738,20697.0,20696.0,0.01681742]
[1673758334078,3.15401738,20697.0,20696.0,0.01681742]
[1673758334348,3.25261948,20697.0,20696.0,0.01681742]
[1673758334913,3.05429143,20697.0,20696.0,0.01681742]
[1673758335163,2.96329143,20697.0,20696.0,0.01681742]
[1673758335416,3.05429143,20697.0,20696.0,0.01681742]
[1673758336205,3.01996143,20697.0,20696.0,0.01681742]
[1673758336463,3.11096143,20697.0,20696.0,0.01681742]
[1673758336717,3.34996691,20697.0,20696.0,0.01681742]
[1673758336971,3.29329691,20697.0,20696.0,0.01681742]
[1673758337237,3.34996691,20697.0,20696.0,0.01681742]
[1673758337996,2.9647722,20697.0,20696.0,0.01681742]
[1673758338256,2.9562722,20697.0,20696.0,0.01681742]
[1673758339558,2.9647722,20697.0,20696.0,0.01681742]
[1673758342080,2.6647722,20697.0,20696.0,0.01681742]
[1673758342386,2.9647722,20697.0,20696.0,0.01681742]
[1673758343127,3.04661313,20697.0,20696.0,0.01681742]
[1673758343894,3.10328313,20697.0,20696.0,0.01681742]
[1673758344896,2.80328313,20697.0,20696.0,0.01681742]
[1673758345880,3.10328313,20697.0,20696.0,0.01681742]
[1673758349653,2.70399869,20697.0,20696.0,0.01681742]
[1673758349898,3.05145565,20697.0,20696.0,0.01681742]
[1673758350411,2.75145565,20697.0,20696.0,0.01681742]
[1673758350662,3.05145565,20697.0,20696.0,0.01681742]
[1673758350910,2.75145565,20697.0,20696.0,0.01681742]
[1673758352176,3.05145565,20697.0,20696.0,0.01681742]
[1673758352454,2.75145565,20697.0,20696.0,0.01681742]
[1673758352758,3.05145565,20697.0,20696.0,0.01681742]
[1673758352957,2.70399869,20697.0,20696.0,0.01681742]
[1673758353206,3.12033965,20697.0,20696.0,0.01681742]
[1673758353467,2.82033965,20697.0,20696.0,0.01681742]
[1673758354769,2.40399869,20697.0,20696.0,0.01681742]
[1673758355050,2.70399869,20697.0,20696.0,0.01681742]
[1673758355332,3.00486477,20697.0,20696.0,0.01681742]
[1673758356111,2.70486477,20697.0,20696.0,0.01681742]
[1673758356689,3.00486477,20697.0,20696.0,0.01681742]
[1673758357471,3.00486477,20697.0,20696.0,0.0167111]
[1673758357723,2.74870753,20697.0,20696.0,0.0167111]
[1673758357988,2.70399869,20697.0,20696.0,0.0167111]
[1673758358256,2.40399869,20697.0,20696.0,0.0167111]
[1673758358518,2.70399869,20697.0,20696.0,0.0167111]
[1673758358770,3.01849919,20697.0,20696.0,0.0167111]
[1673758359056,3.02214589,20697.0,20696.0,0.0167111]
[1673758359309,2.70399869,20697.0,20696.0,0.0167111]
[1673758360073,3.02474862,20697.0,20696.0,0.0167111]
[1673758360684,2.64732869,20697.0,20696.0,0.0167111]
[1673758360859,2.70399869,20697.0,20696.0,0.0167111]
[1673758361123,2.64732869,20697.0,20696.0,0.0167111]
[1673758361645,3.04846851,20697.0,20696.0,0.0167111]
[1673758361910,2.99179851,20697.0,20696.0,0.0167111]
[1673758362160,3.54340395,20697.0,20696.0,0.0167111]
[1673758362424,3.12529225,20697.0,20696.0,0.0167111]
[1673758362684,2.70399869,20697.0,20696.0,0.0167111]
[1673758362930,3.02043176,20697.0,20696.0,0.0167111]
[1673758363430,3.10339266,20697.0,20696.0,0.0167111]
[1673758364691,3.07730014,20697.0,20696.0,0.0167111]
[1673758365485,3.22163534,20697.0,20696.0,0.0167111]
[1673758366415,3.12529164,20697.0,20696.0,0.0167111]
[1673758366657,2.70399869,20697.0,20696.0,0.0167111]
[1673758366900,2.73032734,20697.0,20696.0,0.0167111]
[1673758367639,2.87466254,20697.0,20696.0,0.0167111]
[1673758367886,2.73032734,20697.0,20696.0,0.0167111]
[1673758368140,3.17466254,20697.0,20696.0,0.0167111]
[1673758368432,3.19664404,20697.0,20696.0,0.0167111]
[1673758369202,2.89664404,20697.0,20696.0,0.0167111]
[1673758369711,3.25747415,20697.0,20696.0,0.0167111]
[1673758370495,2.9688092,20697.0,20696.0,0.0167111]
[1673758370736,3.11284251,20697.0,20696.0,0.0167111]
[1673758371487,3.42423119,20697.0,20696.0,0.0167111]
[1673758371728,3.31799919,20697.0,20696.0,0.0167111]
[1673758371973,3.42423119,20697.0,20696.0,0.0167111]
[1673758372721,3.36756119,20697.0,20696.0,0.0167111]
[1673758372989,3.04641719,20697.0,20696.0,0.0167111]
[1673758373260,3.36756119,20697.0,20696.0,0.0167111]
[1673758373500,3.04641719,20697.0,20696.0,0.0167111]
[1673758373745,2.4071985,20697.0,20696.0,0.0167111]
[1673758374007,2.0860545,20697.0,20696.0,0.0167111]
[1673758374751,1.9950545,20697.0,20696.0,0.0167111]
[1673758375239,2.0770545,20697.0,20696.0,0.0177111]
[1673758376270,1.9950545,20697.0,20696.0,0.0167111]
[1673758376532,2.0770545,20697.0,20696.0,0.0177111]
[1673758377801,2.20594604,20697.0,20696.0,0.0177111]
[1673758378054,2.46686486,20697.0,20696.0,0.0177111]
[1673758378526,2.77842642,20697.0,20696.0,0.0177111]
[1673758378775,2.47842642,20697.0,20696.0,0.0177111]
[1673758379277,2.51808386,20697.0,20696.0,0.0177111]
[1673758379525,2.83922786,20697.0,20696.0,0.0177111]
[1673758380612,3.13922786,20697.0,20696.0,0.0177111]
[1673758380897,2.77842642,20697.0,20696.0,0.0177111]
[1673758381114,2.45728242,20697.0,20696.0,0.0177111]
[1673758381359,2.77842642,20697.0,20696.0,0.0177111]
[1673758381613,2.77835604,20697.0,20696.0,0.0177111]
[1673758384393,2.83502604,20697.0,20696.0,0.0177111]
[1673758385138,2.77835604,20697.0,20696.0,0.0177111]
[1673758385389,2.83502604,20697.0,20696.0,0.0177111]
[1673758385927,2.51799517,20697.0,20696.0,0.0177111]
[1673758386151,2.80663035,20697.0,20696.0,0.0177111]
[1673758388141,2.32942866,20697.0,20696.0,0.0177111]
[1673758388606,1.96916299,20697.0,20696.0,0.0177111]
[1673758388908,1.65694836,20697.0,20696.0,0.0177111]
[1673758389409,1.96919321,20697.0,20696.0,0.0177111]
[1673758389672,1.65694836,20697.0,20696.0,0.0177111]
[1673758390413,2.32998644,20697.0,20696.0,0.0177111]
[1673758390921,2.38665644,20697.0,20696.0,0.0177111]
[1673758391966,2.02587331,20697.0,20696.0,0.0177111]
[1673758392212,2.32998644,20697.0,20696.0,0.0177111]
[1673758392483,1.65694836,20697.0,20696.0,0.0177111]
[1673758392730,1.96865418,20697.0,20696.0,0.0177111]
[1673758393004,1.65694836,20697.0,20696.0,0.0177111]
[1673758393263,1.87342211,20697.0,20696.0,0.0177111]
[1673758393736,1.65694836,20697.0,20696.0,0.0177111]
[1673758393991,2.32941531,20697.0,20696.0,0.0177111]
[1673758394242,2.65055931,20697.0,20696.0,0.0177111]
[1673758394746,2.32941531,20697.0,20696.0,0.0177111]
[1673758395010,2.36192413,20697.0,20696.0,0.0177111]
[1673758396013,2.41859413,20697.0,20696.0,0.0177111]
[1673758397269,2.09745013,20697.0,20696.0,0.0177111]
[1673758397516,2.41859413,20697.0,20696.0,0.0177111]
[1673758397774,2.49799413,20697.0,20696.0,0.0177111]
[1673758398020,2.44132413,20697.0,20696.0,0.0177111]
[1673758398267,2.78657942,20697.0,20696.0,0.0177111]
[1673758398746,2.49799413,20697.0,20696.0,0.0177111]
[1673758398987,2.17685013,20697.0,20696.0,0.0177111]
[1673758399227,2.49799413,20697.0,20696.0,0.0177111]
[1673758400233,2.137211,20697.0,20696.0,0.0177111]
[1673758400484,2.49794168,20697.0,20696.0,0.0177111]
[1673758400966,2.79794168,20697.0,20696.0,0.0177111]
[1673758401249,2.437211,20697.0,20696.0,0.0177111]
[1673758402015,2.49793667,20697.0,20696.0,0.0177111]
[1673758402274,2.44126667,20697.0,20696.0,0.0177111]
[1673758402786,2.49793667,20697.0,20696.0,0.0177111]
[1673758403801,2.74126667,20697.0,20696.0,0.0177111]
[1673758404053,2.79793667,20697.0,20696.0,0.0177111]
[1673758404296,2.47679267,20697.0,20696.0,0.0177111]
[1673758404541,2.49793667,20697.0,20696.0,0.0177111]
[1673758405050,2.79793667,20697.0,20696.0,0.0177111]
[1673758405560,2.47679267,20697.0,20696.0,0.0177111]
[1673758405836,2.79793667,20697.0,20696.0,0.0177111]
[1673758406290,2.79793667,20697.0,20696.0,0.01763509]
[1673758406532,2.79794963,20697.0,20696.0,0.01763509]
[1673758406785,2.69171763,20697.0,20696.0,0.01763509]
[1673758407536,2.57601913,20697.0,20696.0,0.01763509]
[1673758407792,3.00895651,20697.0,20696.0,0.01763509]
[1673758408050,3.41583661,20697.0,20696.0,0.01763509]
[1673758408304,3.00895651,20697.0,20696.0,0.01763509]
[1673758408807,3.33587126,20697.0,20696.0,0.01763509]
[1673758409073,2.90293388,20697.0,20696.0,0.01763509]
[1673758409833,2.68802188,20697.0,20696.0,0.01763509]
[1673758410121,3.00916588,20697.0,20696.0,0.01763509]
[1673758410387,2.38802188,20697.0,20696.0,0.01763509]
[1673758410645,2.70916588,20697.0,20696.0,0.01763509]
[1673758410868,3.00916588,20697.0,20696.0,0.01763509]
[1673758411153,3.1563533,20697.0,20696.0,0.01813509]
[1673758411370,2.74866619,20697.0,20696.0,0.01813509]
[1673758411625,2.4920645,20697.0,20696.0,0.01813509]
[1673758412378,2.1709205,20697.0,20696.0,0.01813509]
[1673758412634,2.98826092,20697.0,20696.0,0.01813509]
[1673758412891,3.4211983,20697.0,20696.0,0.01813509]
[1673758413141,3.4778683,20697.0,20696.0,0.01813509]
[1673758413749,3.83987929,20697.0,20696.0,0.01813509]
[1673758413917,2.99136158,20697.0,20696.0,0.01813509]
[1673758414435,2.67021758,20697.0,20696.0,0.01813509]
[1673758414669,2.99136158,20697.0,20696.0,0.01813509]
[1673758415171,2.68225113,20697.0,20696.0,0.01813509]
[1673758415635,3.47371275,20697.0,20696.0,0.01813509]
[1673758416392,3.47371275,20697.0,20696.0,0.00428282]
[1673758417399,3.11518851,20697.0,20696.0,0.00428282]
[1673758417902,3.02982757,20697.0,20696.0,0.00428282]
[1673758418152,2.06802936,20697.0,20696.0,0.09236282]
[1673758418397,2.41312586,20697.0,20696.0,0.09236282]
[1673758418645,1.74092456,20697.0,20696.0,0.09236282]
[1673758418934,1.70218456,20697.0,20696.0,0.09236282]
[1673758419169,2.06270204,20697.0,20696.0,0.00428282]
[1673758419413,1.70218456,20697.0,20696.0,0.00428282]
[1673758419663,2.36118008,20697.0,20696.0,0.00428282]
[1673758420143,2.36968008,20697.0,20696.0,0.00428282]
[1673758420645,2.87959927,20697.0,20696.0,0.00428282]
[1673758421141,2.77336727,20697.0,20696.0,0.00428282]
[1673758421422,2.55845527,20697.0,20696.0,0.00428282]
[1673758421686,2.87959927,20697.0,20696.0,0.00428282]
[1673758421936,2.85795527,20697.0,20696.0,0.00428282]
[1673758422191,3.17909927,20697.0,20696.0,0.00428282]
[1673758422684,3.21783927,20697.0,20696.0,0.00428282]
[1673758423199,2.89669527,20697.0,20696.0,0.00428282]
[1673758423461,3.21783927,20697.0,20696.0,0.00428282]
[1673758424765,2.85732179,20697.0,20696.0,0.00428282]
[1673758425042,2.50974535,20697.0,20696.0,0.00428282]
[1673758425276,2.87627096,20697.0,20696.0,0.00428282]
[1673758425530,2.81960096,20697.0,20696.0,0.00428282]
[1673758425780,2.87627096,20697.0,20696.0,0.00428282]
[1673758426397,3.23677637,20697.0,20696.0,0.00428282]
[1673758429161,2.50974535,20697.0,20696.0,0.00428282]
[1673758429415,3.18316964,20697.0,20696.0,0.00428282]
[1673758429706,2.45307535,20697.0,20696.0,0.00428282]
[1673758429953,3.30053101,20697.0,20696.0,0.00428282]
[1673758431283,2.97591335,20697.0,20696.0,0.00428282]
[1673758431548,3.13431335,20697.0,20696.0,0.00428282]
[1673758432030,3.97363011,20697.0,20696.0,0.00428282]
[1673758434591,2.69882989,20697.0,20696.0,0.00428282]
[1673758435136,2.80068672,20697.0,20696.0,0.00428282]
[1673758435880,3.2071709,20697.0,20696.0,0.00428282]
[1673758436406,3.10068672,20697.0,20696.0,0.00102855]
[1673758437457,3.49276549,20697.0,20696.0,0.00102855]
[1673758437728,3.89958089,20697.0,20696.0,0.00102855]
[1673758437986,3.89961757,20697.0,20696.0,0.00102855]
[1673758440048,3.84294757,20697.0,20696.0,0.00102855]
[1673758440299,3.89961757,20697.0,20696.0,0.00102855]
[1673758440558,3.90504892,20697.0,20696.0,0.00102855]
[1673758441340,4.33752513,20697.0,20696.0,0.00102855]
[1673758441601,3.48580574,20697.0,20696.0,0.00102855]
[1673758441848,2.75332953,20697.0,20696.0,0.00102855]
[1673758442346,3.18580574,20697.0,20696.0,0.00102855]
[1673758443367,3.48580574,20697.0,20696.0,0.00102855]
[1673758444083,3.10062156,20697.0,20696.0,0.00102855]
[1673758444338,3.51644795,20697.0,20696.0,0.00102855]
[1673758445371,3.99055012,20697.0,20696.0,0.00102855]
[1673758446127,3.08397174,20697.0,20696.0,0.00102855]
[1673758448143,3.00457174,20697.0,20696.0,0.00102855]
[1673758448887,2.58874535,20697.0,20696.0,0.00102855]
[1673758449139,3.02122156,20697.0,20696.0,0.00102855]
[1673758449874,3.36914294,20697.0,20696.0,0.00102855]
[1673758450135,3.49532373,20697.0,20696.0,0.00102855]
[1673758450383,3.81547565,20697.0,20696.0,0.00102855]
[1673758450629,3.34137348,20697.0,20696.0,0.00102855]
[1673758450877,2.90889727,20697.0,20696.0,0.00102855]
[1673758451146,3.34137348,20697.0,20696.0,0.00102855]
[1673758451413,2.90889727,20697.0,20696.0,0.00102855]
[1673758453951,3.34137348,20697.0,20696.0,0.00102855]
[1673758454445,2.90889727,20697.0,20696.0,0.00102855]
[1673758455190,3.02122156,20697.0,20696.0,0.00102855]
[1673758455442,3.86040352,20697.0,20696.0,0.00102855]
[1673758455942,3.42792731,20697.0,20696.0,0.00102855]
[1673758456210,2.72122156,20697.0,20696.0,0.18417855]
[1673758456466,2.72122156,20697.0,20696.0,0.60025743]
[1673758456467,1.70667518,20697.0,20696.0,0.60025743]
[1673758456717,1.39279201,20697.0,20696.0,0.60025743]
[1673758457474,1.60907015,20697.0,20696.0,0.60025743]
[1673758458007,1.61757015,20697.0,20696.0,0.60025743]